[Event "SM-blixten 2025"]
[Site "Uppsala, Sweden"]
[Date "2025.07.03"]
[Round "7.3"]
[White "Nygren, Kim"]
[Black "Seo, Jung Min"]
[Result "0-1"]
[TimeControl "3 min + 2 sec increment starting from move 1"]
[WhiteTitle "CM"]
[BlackTitle "IM"]
[WhiteElo "2173"]
[BlackElo "2468"]

1. c4 {[%clk 00:03:03]} {[%emt 00:00:02]} e5 {[%clk 00:03:03]} {[%emt
00:00:01]} 2. Nc3 {[%clk 00:03:03]} {[%emt 00:00:01]} Nf6 {[%clk 00:03:04]}
{[%emt 00:00:02]} 3. g3 {[%clk 00:03:02]} {[%emt 00:00:03]} Bb4 {[%clk
00:03:04]} {[%emt 00:00:01]} 4. Bg2 {[%clk 00:03:02]} {[%emt 00:00:02]} O-O
{[%clk 00:03:01]} {[%emt 00:00:06]} 5. Qc2 {[%clk 00:03:03]} {[%emt 00:00:01]}
Re8 {[%clk 00:02:59]} {[%emt 00:00:03]} 6. Nd5 {[%clk 00:02:59]} {[%emt
00:00:06]} Bf8 {[%clk 00:02:54]} {[%emt 00:00:07]} 7. d3 {[%clk 00:02:59]}
{[%emt 00:00:02]} c6 {[%clk 00:02:53]} {[%emt 00:00:04]} 8. Nxf6+ {[%clk
00:02:55]} {[%emt 00:00:06]} Qxf6 {[%clk 00:02:54]} {[%emt 00:00:01]} 9. Nf3
{[%clk 00:02:43]} {[%emt 00:00:14]} d6 {[%clk 00:02:48]} {[%emt 00:00:08]} 10.
O-O {[%clk 00:02:39]} {[%emt 00:00:05]} a5 {[%clk 00:02:46]} {[%emt 00:00:05]}
11. Rb1 {[%clk 00:02:34]} {[%emt 00:00:07]} h6 {[%clk 00:02:44]} {[%emt
00:00:03]} 12. a3 {[%clk 00:02:32]} {[%emt 00:00:05]} a4 {[%clk 00:02:40]}
{[%emt 00:00:05]} 13. Nd2 {[%clk 00:02:33]} {[%emt 00:00:02]} Nd7 {[%clk
00:02:33]} {[%emt 00:00:09]} 14. Ne4 {[%clk 00:02:33]} {[%emt 00:00:01]} Qd8
{[%clk 00:02:34]} {[%emt 00:00:02]} 15. f4 {[%clk 00:02:30]} {[%emt 00:00:04]}
exf4 {[%clk 00:02:25]} {[%emt 00:00:11]} 16. Bxf4 {[%clk 00:02:31]} {[%emt
00:00:01]} Nc5 {[%clk 00:02:23]} {[%emt 00:00:04]} 17. Nxc5 {[%clk 00:02:25]}
{[%emt 00:00:09]} dxc5 {[%clk 00:02:20]} {[%emt 00:00:06]} 18. Rf2 {[%clk
00:02:16]} {[%emt 00:00:10]} Be6 {[%clk 00:02:20]} {[%emt 00:00:02]} 19. Rbf1
{[%clk 00:01:58]} {[%emt 00:00:20]} Qd7 {[%clk 00:02:20]} {[%emt 00:00:02]} 20.
Be5 {[%clk 00:01:48]} {[%emt 00:00:12]} Ra7 {[%clk 00:02:03]} {[%emt 00:00:19]}
21. Bc3 {[%clk 00:01:47]} {[%emt 00:00:03]} b5 {[%clk 00:02:03]} {[%emt
00:00:02]} 22. Rf4 {[%clk 00:01:30]} {[%emt 00:00:19]} Bd6 {[%clk 00:01:40]}
{[%emt 00:00:25]} 23. Rh4 {[%clk 00:01:28]} {[%emt 00:00:04]} Be7 {[%clk
00:01:37]} {[%emt 00:00:05]} 24. Re4 {[%clk 00:01:20]} {[%emt 00:00:10]} bxc4
{[%clk 00:01:20]} {[%emt 00:00:19]} 25. dxc4 {[%clk 00:01:01]} {[%emt
00:00:21]} Raa8 {[%clk 00:01:12]} {[%emt 00:00:10]} 26. Rd1 {[%clk 00:00:55]}
{[%emt 00:00:07]} Qc8 {[%clk 00:01:07]} {[%emt 00:00:08]} 27. Rf4 {[%clk
00:00:42]} {[%emt 00:00:15]} Bg5 {[%clk 00:01:02]} {[%emt 00:00:06]} 28. Re4
{[%clk 00:00:28]} {[%emt 00:00:17]} Rf8 {[%clk 00:00:46]} {[%emt 00:00:18]} 29.
h4 {[%clk 00:00:28]} {[%emt 00:00:02]} Be7 {[%clk 00:00:47]} {[%emt 00:00:01]}
30. Rf4 {[%clk 00:00:24]} {[%emt 00:00:07]} Qc7 {[%clk 00:00:44]} {[%emt
00:00:05]} 31. Qe4 {[%clk 00:00:22]} {[%emt 00:00:02]} Bd6 {[%clk 00:00:35]}
{[%emt 00:00:12]} 32. Rf3 {[%clk 00:00:12]} {[%emt 00:00:12]} Bxg3 {[%clk
00:00:31]} {[%emt 00:00:07]} 33. Rdd3 {[%clk 00:00:07]} {[%emt 00:00:06]} Bh2+
{[%clk 00:00:28]} {[%emt 00:00:04]} 34. Kf1 {[%clk 00:00:08]} {[%emt 00:00:02]}
Rad8 {[%clk 00:00:23]} {[%emt 00:00:07]} 35. Bh3 {[%clk 00:00:07]} {[%emt
00:00:02]} Rxd3 {[%clk 00:00:14]} {[%emt 00:00:11]} 36. exd3 {[%clk 00:00:08]}
{[%emt 00:00:01]} Bxh3+ {[%clk 00:00:10]} {[%emt 00:00:05]} 37. Rxh3 {[%clk
00:00:09]} {[%emt 00:00:01]} Qf4+ {[%clk 00:00:05]} {[%emt 00:00:08]} 38. Qxf4
Bxf4 {[%clk 00:00:06]} 39. Ke2 {[%clk 00:00:08]} Re8+ {[%clk 00:00:05]} {[%emt
00:00:03]} 40. Kd1 {[%clk 00:00:08]} {[%emt 00:00:02]} Be5 {[%clk 00:00:04]}
{[%emt 00:00:04]} 41. Kd2 {[%clk 00:00:09]} {[%emt 00:00:01]} f6 {[%clk
00:00:04]} {[%emt 00:00:02]} 42. Rf3 {[%clk 00:00:09]} {[%emt 00:00:01]} Kf7
{[%clk 00:00:05]} {[%emt 00:00:02]} 43. h5 {[%clk 00:00:10]} Bxc3+ {[%clk
00:00:05]} {[%emt 00:00:03]} 44. Kxc3 {[%clk 00:00:11]} {[%emt 00:00:01]} Re5
{[%clk 00:00:06]} 45. Rh3 {[%clk 00:00:12]} Rg5 {[%clk 00:00:07]} {[%emt
00:00:02]} 46. Rh4 {[%clk 00:00:12]} {[%emt 00:00:01]} Rg1 {[%clk 00:00:07]}
{[%emt 00:00:02]} 47. b4 {[%clk 00:00:13]} {[%emt 00:00:01]} axb3 {[%clk
00:00:06]} {[%emt 00:00:03]} 48. Kxb3 {[%clk 00:00:14]} {[%emt 00:00:01]} f5
{[%clk 00:00:06]} {[%emt 00:00:02]} 49. a4 {[%clk 00:00:15]} {[%emt 00:00:01]}
Kf6 {[%clk 00:00:07]} {[%emt 00:00:01]} 50. a5 {[%clk 00:00:15]} {[%emt
00:00:02]} Ra1 {[%clk 00:00:08]} 51. d4 {[%clk 00:00:12]} {[%emt 00:00:05]}
Rxa5 {[%clk 00:00:07]} {[%emt 00:00:03]} 52. d5 {[%clk 00:00:11]} {[%emt
00:00:03]} Ra6 {[%clk 00:00:07]} {[%emt 00:00:02]} 53. Rh3 {[%clk 00:00:10]}
{[%emt 00:00:03]} Rb6+ {[%clk 00:00:07]} {[%emt 00:00:02]} 54. Kc3 {[%clk
00:00:11]} cxd5 {[%clk 00:00:07]} {[%emt 00:00:03]} 55. cxd5 {[%clk 00:00:12]}
{[%emt 00:00:01]} Rb4 {[%clk 00:00:08]} {[%emt 00:00:01]} 56. Rg3 {[%clk
00:00:12]} {[%emt 00:00:02]} Rd4 {[%clk 00:00:06]} {[%emt 00:00:05]} 57. Rg6+
{[%clk 00:00:13]} Kf7 {[%clk 00:00:07]} {[%emt 00:00:02]} 58. d6 {[%clk
00:00:14]} f4 {[%clk 00:00:08]} 59. Rg4 {[%clk 00:00:10]} {[%emt 00:00:06]}
Rxd6 {[%clk 00:00:06]} {[%emt 00:00:03]} 60. Rxf4+ {[%emt 00:00:01]} Rf6 {[%clk
00:00:07]} 61. Rh4 {[%clk 00:00:12]} {[%emt 00:00:02]} Rf5 {[%clk 00:00:07]}
{[%emt 00:00:02]} 62. Kc4 {[%clk 00:00:13]} Kf6 {[%clk 00:00:08]} 63. Rh1
{[%clk 00:00:14]} {[%emt 00:00:02]} Re5 {[%clk 00:00:08]} {[%emt 00:00:03]} 64.
Rh2 {[%clk 00:00:15]} {[%emt 00:00:02]} Ke6 {[%clk 00:00:08]} {[%emt 00:00:01]}
65. Rh1 {[%clk 00:00:15]} {[%emt 00:00:03]} Kd6 {[%clk 00:00:09]} {[%emt
00:00:01]} 66. Rd1+ {[%clk 00:00:15]} {[%emt 00:00:01]} Kc6 {[%clk 00:00:10]}
67. Rg1 {[%clk 00:00:16]} Rg5 {[%clk 00:00:10]} {[%emt 00:00:03]} 68. Ra1
{[%clk 00:00:12]} {[%emt 00:00:06]} Rg4+ {[%clk 00:00:08]} {[%emt 00:00:03]} 69.
Kc3 {[%clk 00:00:13]} {[%emt 00:00:02]} Kd5 {[%clk 00:00:07]} {[%emt 00:00:03]}
70. Rd1+ {[%clk 00:00:12]} {[%emt 00:00:02]} Ke6 {[%clk 00:00:07]} {[%emt
00:00:02]} 71. Ra1 {[%clk 00:00:10]} {[%emt 00:00:06]} Kf6 {[%clk 00:00:07]}
{[%emt 00:00:02]} 72. Ra5 {[%clk 00:00:10]} {[%emt 00:00:01]} Rg5 {[%clk
00:00:05]} {[%emt 00:00:03]} 73. Ra6+ {[%clk 00:00:10]} {[%emt 00:00:02]} Ke5
{[%clk 00:00:06]} {[%emt 00:00:02]} 74. Rc6 {[%clk 00:00:11]} {[%emt 00:00:02]}
Kf4 {[%clk 00:00:05]} {[%emt 00:00:02]} 75. Rc7 {[%clk 00:00:10]} {[%emt
00:00:03]} Kg4 {[%clk 00:00:06]} {[%emt 00:00:01]} 0-1

[Event "SM-blixten 2025"]
[Site "Uppsala, Sweden"]
[Date "2025.07.03"]
[Round "8.9"]
[White "Malm Lindberg, Henrik"]
[Black "Ostlund, Joar"]
[Result "0-1"]
[TimeControl "3 min + 2 sec increment starting from move 1"]
[BlackTitle "FM"]
[WhiteElo "2113"]
[BlackElo "2322"]

1. e4 {[%clk 00:03:03]} {[%emt 00:10:22]} c5 {[%clk 00:03:03]} 2. Nf3 {[%clk
00:03:04]} {[%emt 00:00:01]} Nc6 {[%clk 00:03:04]} 3. d4 {[%clk 00:03:05]} cxd4
{[%clk 00:03:05]} {[%emt 00:00:01]} 4. Nxd4 {[%clk 00:03:06]} {[%emt 00:00:01]}
g6 {[%clk 00:03:06]} 5. c4 {[%clk 00:03:07]} {[%emt 00:00:02]} Nf6 {[%clk
00:03:04]} {[%emt 00:00:03]} 6. Nc3 {[%clk 00:03:08]} {[%emt 00:00:01]} Nxd4
{[%clk 00:03:02]} {[%emt 00:00:04]} 7. Qxd4 {[%clk 00:03:08]} {[%emt 00:00:02]}
d6 {[%clk 00:03:04]} 8. Bg5 {[%clk 00:03:08]} {[%emt 00:00:01]} Bg7 {[%clk
00:03:04]} {[%emt 00:00:02]} 9. Qd2 {[%clk 00:03:07]} {[%emt 00:00:04]} O-O
{[%clk 00:03:02]} {[%emt 00:00:04]} 10. Be2 {[%clk 00:02:37]} {[%emt 00:00:31]}
Be6 {[%clk 00:02:59]} {[%emt 00:00:05]} 11. Rc1 {[%clk 00:02:30]} {[%emt
00:00:10]} Qa5 {[%clk 00:02:44]} {[%emt 00:00:17]} 12. f3 {[%clk 00:02:15]}
{[%emt 00:00:17]} Rfc8 {[%clk 00:02:44]} {[%emt 00:00:01]} 13. b3 {[%clk
00:02:14]} {[%emt 00:00:04]} a6 {[%clk 00:02:35]} {[%emt 00:00:11]} 14. Na4
{[%clk 00:02:03]} {[%emt 00:00:12]} Qxd2+ {[%clk 00:02:05]} {[%emt 00:00:32]}
15. Kxd2 {[%clk 00:01:58]} {[%emt 00:00:08]} Rc6 {[%clk 00:02:00]} {[%emt
00:00:07]} 16. g4 {[%clk 00:01:45]} {[%emt 00:00:14]} h6 {[%clk 00:01:53]}
{[%emt 00:00:09]} 17. Be3 {[%clk 00:01:40]} {[%emt 00:00:07]} Nd7 {[%clk
00:01:53]} {[%emt 00:00:02]} 18. Nc3 {[%clk 00:00:48]} {[%emt 00:00:55]} b5
{[%clk 00:01:30]} {[%emt 00:00:24]} 19. cxb5 axb5 {[%clk 00:01:31]} 20. Bxb5
{[%clk 00:00:37]} {[%emt 00:00:11]} Bxc3+ {[%clk 00:01:31]} {[%emt 00:00:01]}
21. Rxc3 {[%clk 00:00:35]} {[%emt 00:00:05]} Rxa2+ {[%clk 00:01:32]} 22. Kd3
{[%clk 00:00:35]} {[%emt 00:00:01]} Ne5+ {[%clk 00:01:16]} {[%emt 00:00:18]} 23.
Kd4 {[%clk 00:00:33]} {[%emt 00:00:03]} Nxf3+ {[%clk 00:01:16]} {[%emt
00:00:03]} 24. Kd3 {[%clk 00:00:30]} {[%emt 00:00:05]} Ne5+ {[%clk 00:01:10]}
{[%emt 00:00:08]} 25. Kd4 {[%clk 00:00:30]} {[%emt 00:00:02]} Rb6 {[%clk
00:00:50]} {[%emt 00:00:22]} 26. Bc4 {[%clk 00:00:05]} {[%emt 00:00:25]} Bxc4
{[%clk 00:00:43]} {[%emt 00:00:11]} 27. bxc4 {[%clk 00:00:05]} {[%emt
00:00:02]} Nc6+ {[%clk 00:00:40]} {[%emt 00:00:05]} 28. Kd3 {[%clk 00:00:04]}
{[%emt 00:00:03]} Nb4+ {[%clk 00:00:41]} {[%emt 00:00:02]} 29. Kd4 {[%clk
00:00:04]} {[%emt 00:00:02]} e5# {[%clk 00:00:42]} 0-1

[Event "SM-blixten 2025"]
[Site "Uppsala, Sweden"]
[Date "2025.07.03"]
[Round "10.5"]
[White "Hakanson, Josef"]
[Black "Grahn, Vidar"]
[Result "0-1"]
[TimeControl "3 min + 2 sec increment starting from move 1"]
[BlackTitle "FM"]
[WhiteElo "2131"]
[BlackElo "2239"]

1. e4 {[%clk 00:03:02]} {[%emt 00:08:33]} c5 {[%clk 00:03:02]} 2. c3 {[%clk
00:03:02]} {[%emt 00:00:04]} Nf6 {[%clk 00:03:04]} {[%emt 00:00:01]} 3. e5
{[%clk 00:03:03]} Nd5 {[%clk 00:03:05]} {[%emt 00:00:01]} 4. Nf3 {[%clk
00:03:04]} e6 {[%clk 00:03:06]} {[%emt 00:00:01]} 5. d4 {[%clk 00:03:06]}
{[%emt 00:00:01]} cxd4 {[%clk 00:03:07]} 6. cxd4 {[%clk 00:03:06]} {[%emt
00:00:01]} d6 {[%clk 00:03:08]} 7. Bd3 {[%clk 00:03:04]} {[%emt 00:00:05]} dxe5
{[%clk 00:03:09]} {[%emt 00:00:02]} 8. Nxe5 {[%clk 00:03:00]} {[%emt 00:00:06]}
Nd7 {[%clk 00:03:00]} {[%emt 00:00:10]} 9. O-O {[%clk 00:02:55]} {[%emt
00:00:07]} Bd6 {[%clk 00:02:59]} {[%emt 00:00:04]} 10. Re1 {[%clk 00:02:49]}
{[%emt 00:00:07]} O-O {[%clk 00:02:36]} {[%emt 00:00:26]} 11. Nc3 {[%clk
00:02:44]} {[%emt 00:00:07]} Nxc3 {[%clk 00:02:33]} {[%emt 00:00:05]} 12. bxc3
{[%clk 00:02:44]} {[%emt 00:00:01]} Bxe5 {[%clk 00:02:30]} {[%emt 00:00:05]} 13.
dxe5 {[%clk 00:02:45]} {[%emt 00:00:01]} Nc5 {[%clk 00:02:30]} {[%emt
00:00:03]} 14. Be2 {[%clk 00:02:26]} {[%emt 00:00:20]} Qa5 {[%clk 00:02:29]}
{[%emt 00:00:03]} 15. Qd4 {[%clk 00:02:21]} {[%emt 00:00:07]} Rd8 {[%clk
00:02:22]} {[%emt 00:00:10]} 16. Qb4 {[%clk 00:02:20]} {[%emt 00:00:03]} Qc7
{[%clk 00:02:11]} {[%emt 00:00:13]} 17. Be3 {[%clk 00:02:13]} {[%emt 00:00:08]}
b6 {[%clk 00:02:07]} {[%emt 00:00:07]} 18. Bxc5 {[%clk 00:02:11]} {[%emt
00:00:04]} bxc5 {[%clk 00:02:02]} {[%emt 00:00:07]} 19. Qe4 {[%clk 00:02:08]}
{[%emt 00:00:01]} Bb7 {[%clk 00:02:02]} {[%emt 00:00:07]} 20. Qe3 {[%clk
00:02:09]} Rab8 {[%clk 00:01:55]} {[%emt 00:00:09]} 21. h4 {[%clk 00:02:08]}
{[%emt 00:00:03]} Ba8 {[%clk 00:01:35]} {[%emt 00:00:22]} 22. Rab1 {[%clk
00:02:00]} {[%emt 00:00:09]} Rb6 {[%clk 00:01:27]} {[%emt 00:00:11]} 23. Rb3
{[%clk 00:02:00]} {[%emt 00:00:03]} h6 {[%clk 00:00:59]} {[%emt 00:00:30]} 24.
Reb1 {[%clk 00:01:59]} {[%emt 00:00:02]} Bd5 {[%clk 00:00:53]} {[%emt
00:00:08]} 25. c4 {[%clk 00:01:55]} {[%emt 00:00:06]} Ba8 {[%clk 00:00:48]}
{[%emt 00:00:07]} 26. Rb5 {[%clk 00:01:52]} {[%emt 00:00:04]} Rd4 {[%clk
00:00:47]} {[%emt 00:00:04]} 27. h5 {[%clk 00:01:44]} {[%emt 00:00:10]} Re4
{[%clk 00:00:44]} {[%emt 00:00:05]} 28. Qd2 {[%clk 00:01:26]} {[%emt 00:00:20]}
Rxe5 {[%clk 00:00:43]} {[%emt 00:00:03]} 29. a4 {[%clk 00:01:26]} {[%emt
00:00:02]} Rg5 {[%clk 00:00:42]} {[%emt 00:00:03]} 30. Bf1 {[%clk 00:01:22]}
{[%emt 00:00:06]} Qc6 {[%clk 00:00:36]} {[%emt 00:00:07]} 31. Qd8+ {[%clk
00:01:22]} {[%emt 00:00:03]} Kh7 {[%clk 00:00:38]} 32. Qd3+ {[%clk 00:01:20]}
{[%emt 00:00:05]} f5 {[%clk 00:00:39]} {[%emt 00:00:01]} 33. Qh3 {[%clk
00:01:09]} {[%emt 00:00:12]} Rxb5 {[%clk 00:00:33]} {[%emt 00:00:09]} 34. cxb5
{[%clk 00:01:10]} {[%emt 00:00:01]} Qe4 {[%clk 00:00:34]} {[%emt 00:00:01]} 35.
Rd1 {[%clk 00:01:06]} {[%emt 00:00:01]} Qxa4 {[%clk 00:00:35]} {[%emt
00:00:05]} 36. Rd6 {[%clk 00:01:04]} {[%emt 00:00:04]} Qa1 {[%clk 00:00:31]}
{[%emt 00:00:06]} 37. Qd3 {[%clk 00:01:01]} {[%emt 00:00:04]} Rxg2+ {[%clk
00:00:28]} {[%emt 00:00:05]} 38. Kh1 {[%clk 00:01:01]} {[%emt 00:00:03]} Rg3+
{[%clk 00:00:23]} {[%emt 00:00:07]} 0-1

[Event "SM-blixten 2025"]
[Site "Uppsala, Sweden"]
[Date "2025.07.03"]
[Round "2.6"]
[White "Dolata, Henryk"]
[Black "Malmstig, Erik"]
[Result "0-1"]
[TimeControl "3 min + 2 sec increment starting from move 1"]
[BlackTitle "FM"]
[WhiteElo "1958"]
[BlackElo "2231"]

1. e4 {[%clk 00:03:03]} c5 {[%clk 00:03:03]} {[%emt 00:00:02]} 2. c3 {[%clk
00:03:03]} d6 {[%clk 00:03:04]} {[%emt 00:00:01]} 3. d4 {[%clk 00:03:04]}
{[%emt 00:00:02]} Nd7 {[%clk 00:03:05]} {[%emt 00:00:01]} 4. Nf3 {[%clk
00:03:03]} {[%emt 00:00:02]} e6 {[%clk 00:03:04]} {[%emt 00:00:03]} 5. Bd3
{[%clk 00:02:59]} {[%emt 00:00:06]} Qc7 {[%clk 00:03:05]} {[%emt 00:00:01]} 6.
Qe2 {[%clk 00:03:00]} {[%emt 00:00:02]} Ngf6 {[%clk 00:03:05]} {[%emt
00:00:02]} 7. O-O {[%clk 00:02:57]} {[%emt 00:00:04]} Be7 {[%clk 00:03:06]}
{[%emt 00:00:01]} 8. Bg5 {[%clk 00:02:54]} {[%emt 00:00:05]} b6 {[%clk
00:03:07]} {[%emt 00:00:02]} 9. e5 {[%clk 00:02:52]} {[%emt 00:00:04]} dxe5
{[%clk 00:03:08]} 10. dxe5 {[%clk 00:02:53]} {[%emt 00:00:01]} Nd5 {[%clk
00:03:09]} 11. Bxe7 {[%clk 00:02:51]} {[%emt 00:00:03]} Nxe7 {[%clk 00:03:10]}
{[%emt 00:00:01]} 12. Nbd2 {[%clk 00:02:44]} {[%emt 00:00:09]} Bb7 {[%clk
00:03:08]} {[%emt 00:00:04]} 13. Nc4 {[%clk 00:02:32]} {[%emt 00:00:14]} O-O
{[%clk 00:03:05]} {[%emt 00:00:05]} 14. Nd6 {[%clk 00:02:31]} {[%emt 00:00:03]}
Bxf3 {[%clk 00:03:04]} {[%emt 00:00:03]} 15. gxf3 {[%clk 00:02:23]} {[%emt
00:00:09]} Nd5 {[%clk 00:02:55]} {[%emt 00:00:12]} 16. Qe4 {[%clk 00:02:14]}
{[%emt 00:00:11]} g6 {[%clk 00:02:51]} {[%emt 00:00:06]} 17. Rfe1 {[%clk
00:01:48]} {[%emt 00:00:27]} Rad8 {[%clk 00:02:47]} {[%emt 00:00:06]} 18. Nb5
{[%clk 00:01:31]} {[%emt 00:00:19]} Qb8 {[%clk 00:02:37]} {[%emt 00:00:12]} 19.
Rad1 {[%clk 00:01:26]} {[%emt 00:00:07]} a6 {[%clk 00:02:32]} {[%emt 00:00:08]}
20. Na3 {[%clk 00:01:27]} {[%emt 00:00:01]} b5 {[%clk 00:02:30]} {[%emt
00:00:04]} 21. Nc2 {[%clk 00:01:15]} {[%emt 00:00:13]} c4 {[%clk 00:02:30]}
{[%emt 00:00:03]} 22. Bf1 {[%clk 00:01:16]} Nc5 {[%clk 00:02:19]} {[%emt
00:00:13]} 23. Qh4 {[%clk 00:01:13]} {[%emt 00:00:04]} Qc7 {[%clk 00:02:16]}
{[%emt 00:00:05]} 24. Rd4 {[%clk 00:00:42]} {[%emt 00:00:32]} Qe7 {[%clk
00:01:54]} {[%emt 00:00:24]} 25. Qh6 {[%clk 00:00:40]} {[%emt 00:00:06]} f5
{[%clk 00:01:46]} {[%emt 00:00:10]} 26. exf6 {[%clk 00:00:25]} {[%emt
00:00:17]} Qxf6 {[%clk 00:01:45]} {[%emt 00:00:03]} 27. Bg2 {[%clk 00:00:12]}
{[%emt 00:00:14]} Nd3 {[%clk 00:01:37]} {[%emt 00:00:11]} 0-1

[Event "SM-blixten 2025"]
[Site "Uppsala, Sweden"]
[Date "2025.07.03"]
[Round "4.2"]
[White "Carlsson, Ludvig"]
[Black "Ral Lustig, Melvin"]
[Result "1-0"]
[TimeControl "3 min + 2 sec increment starting from move 1"]
[WhiteTitle "IM"]
[BlackTitle "CM"]
[WhiteElo "2386"]
[BlackElo "2223"]

1. Nf3 {[%clk 00:03:02]} {[%emt 00:00:01]} c5 {[%clk 00:02:59]} {[%emt
00:00:05]} 2. c4 {[%clk 00:03:03]} {[%emt 00:00:02]} Nc6 {[%clk 00:02:55]}
{[%emt 00:00:06]} 3. Nc3 {[%clk 00:03:03]} {[%emt 00:00:01]} Nf6 {[%clk
00:02:50]} {[%emt 00:00:07]} 4. d4 {[%clk 00:03:04]} {[%emt 00:00:01]} cxd4
{[%clk 00:02:49]} {[%emt 00:00:04]} 5. Nxd4 {[%clk 00:03:05]} {[%emt 00:00:01]}
e6 {[%clk 00:02:49]} {[%emt 00:00:01]} 6. Bf4 {[%clk 00:03:05]} {[%emt
00:00:02]} Bb4 {[%clk 00:02:30]} {[%emt 00:00:22]} 7. Ndb5 {[%clk 00:03:02]}
{[%emt 00:00:05]} e5 {[%clk 00:02:06]} {[%emt 00:00:26]} 8. Bg5 {[%clk
00:02:58]} {[%emt 00:00:05]} O-O {[%clk 00:01:55]} {[%emt 00:00:13]} 9. a3
{[%clk 00:02:43]} {[%emt 00:00:18]} Bxc3+ {[%clk 00:01:49]} {[%emt 00:00:08]}
10. Nxc3 {[%clk 00:02:43]} {[%emt 00:00:02]} h6 {[%clk 00:01:46]} {[%emt
00:00:04]} 11. Bxf6 {[%clk 00:02:35]} {[%emt 00:00:10]} Qxf6 {[%clk 00:01:47]}
{[%emt 00:00:02]} 12. e3 {[%clk 00:02:34]} {[%emt 00:00:03]} Qg6 {[%clk
00:01:12]} {[%emt 00:00:38]} 13. g3 {[%clk 00:01:56]} {[%emt 00:00:39]} d6
{[%clk 00:01:00]} {[%emt 00:00:14]} 14. Bg2 {[%clk 00:01:54]} {[%emt 00:00:03]}
Bg4 {[%clk 00:00:58]} {[%emt 00:00:04]} 15. Qd2 {[%clk 00:01:46]} {[%emt
00:00:10]} Na5 {[%clk 00:00:47]} {[%emt 00:00:14]} 16. Nd5 {[%clk 00:01:46]}
{[%emt 00:00:01]} Nxc4 {[%clk 00:00:18]} {[%emt 00:00:31]} 17. Ne7+ {[%clk
00:01:46]} {[%emt 00:00:02]} Kh7 {[%clk 00:00:18]} {[%emt 00:00:02]} 18. Nxg6
{[%clk 00:01:46]} {[%emt 00:00:02]} 1-0

[Event "SM-blixten 2025"]
[Site "Uppsala, Sweden"]
[Date "2025.07.03"]
[Round "5.8"]
[White "Pantzar, Milton"]
[Black "Tornberg, Carlos"]
[Result "1-0"]
[TimeControl "3 min + 2 sec increment starting from move 1"]
[WhiteTitle "IM"]
[WhiteElo "2444"]
[BlackElo "2164"]

1. d4 {[%clk 00:03:02]} {[%emt 00:00:02]} Nf6 {[%clk 00:03:03]} {[%emt
00:00:02]} 2. Nf3 {[%clk 00:02:59]} {[%emt 00:00:04]} e6 {[%clk 00:03:04]}
{[%emt 00:00:02]} 3. e3 {[%clk 00:02:58]} {[%emt 00:00:03]} c5 {[%clk
00:03:02]} {[%emt 00:00:04]} 4. b3 {[%clk 00:02:58]} {[%emt 00:00:01]} Nc6
{[%clk 00:03:03]} {[%emt 00:00:02]} 5. Bb2 {[%clk 00:02:57]} {[%emt 00:00:03]}
Be7 {[%clk 00:02:58]} {[%emt 00:00:07]} 6. Bd3 {[%clk 00:02:57]} {[%emt
00:00:02]} O-O {[%clk 00:02:58]} {[%emt 00:00:02]} 7. O-O {[%clk 00:02:57]}
{[%emt 00:00:02]} d5 {[%clk 00:02:56]} {[%emt 00:00:04]} 8. a3 {[%clk
00:02:55]} {[%emt 00:00:05]} b6 {[%clk 00:02:48]} {[%emt 00:00:09]} 9. Nbd2
{[%clk 00:02:50]} {[%emt 00:00:07]} Bb7 {[%clk 00:02:47]} {[%emt 00:00:03]} 10.
Qe2 {[%clk 00:02:45]} {[%emt 00:00:07]} Re8 {[%clk 00:02:33]} {[%emt 00:00:16]}
11. dxc5 {[%clk 00:02:36]} {[%emt 00:00:10]} Bxc5 {[%clk 00:02:22]} {[%emt
00:00:13]} 12. e4 {[%clk 00:02:37]} {[%emt 00:00:02]} dxe4 {[%clk 00:01:56]}
{[%emt 00:00:29]} 13. Nxe4 {[%clk 00:02:37]} {[%emt 00:00:01]} Nd4 {[%clk
00:01:53]} {[%emt 00:00:05]} 14. Nxd4 {[%clk 00:02:14]} {[%emt 00:00:25]} Bxd4
{[%clk 00:01:53]} {[%emt 00:00:02]} 15. Nxf6+ {[%clk 00:01:16]} {[%emt
00:01:00]} Qxf6 {[%clk 00:01:23]} {[%emt 00:00:32]} 16. Bxh7+ {[%clk 00:01:04]}
{[%emt 00:00:13]} Kxh7 {[%clk 00:01:16]} {[%emt 00:00:10]} 17. Qd3+ {[%clk
00:01:04]} {[%emt 00:00:01]} Kg8 {[%clk 00:01:07]} {[%emt 00:00:11]} 18. Qxd4
{[%clk 00:00:51]} {[%emt 00:00:15]} e5 {[%clk 00:01:08]} {[%emt 00:00:01]} 19.
Qd3 {[%clk 00:00:43]} {[%emt 00:00:10]} Rad8 {[%clk 00:00:56]} {[%emt
00:00:14]} 20. Qg3 {[%clk 00:00:43]} {[%emt 00:00:02]} Rd2 {[%clk 00:00:49]}
{[%emt 00:00:09]} 21. Rae1 {[%clk 00:00:43]} {[%emt 00:00:02]} Qh6 {[%clk
00:00:12]} {[%emt 00:00:39]} 22. Bc1 {[%clk 00:00:29]} {[%emt 00:00:15]} Ba6
{[%clk 00:00:10]} {[%emt 00:00:05]} 23. Bxd2 {[%clk 00:00:29]} {[%emt
00:00:02]} Qxd2 {[%clk 00:00:11]} {[%emt 00:00:01]} 24. Rd1 {[%clk 00:00:29]}
{[%emt 00:00:01]} Qxc2 {[%clk 00:00:10]} {[%emt 00:00:03]} 25. Rfe1 {[%clk
00:00:30]} {[%emt 00:00:01]} Qxb3 {[%emt 00:00:05]} 1-0